[Event "Live Chess"]
[Site "Chess.com"]
[Date "2024.06.01"]
[Round "-"]
[White "viktor_forever1994"]
[Black "Brooms1989"]
[Result "0-1"]
[WhiteElo "1410"]
[BlackElo "1050"]
[TimeControl "300"]
[EndTime "9:32:05 PDT"]
[Termination "Brooms1989 won by resignation"]

1. e4 {[%clk 0:04:58.2]} 1... e5 {[%clk 0:04:58.8]} 2. Nf3 {[%clk 0:04:57.2]}
2... Nc6 {[%clk 0:04:57.3]} 3. d4 {[%clk 0:04:57.1]} 3... exd4 {[%clk
0:04:54.9]} 4. Nxd4 {[%clk 0:04:57]} 4... Nf6 {[%clk 0:04:51.8]} 5. Nc3 {[%clk
0:04:54.9]} 5... Bb4 {[%clk 0:04:49.6]} 6. Nxc6 {[%clk 0:04:50.9]} 6... bxc6
{[%clk 0:04:43.3]} 7. Qd4 {[%clk 0:04:44.9]} 7... Bxc3+ {[%clk 0:04:33.5]} 8.
Qxc3 {[%clk 0:04:42.8]} 8... O-O {[%clk 0:04:31.7]} 9. Bg5 {[%clk 0:04:39.9]}
9... Nxe4 {[%clk 0:04:22]} 10. Bxd8 {[%clk 0:04:26.8]} 10... Nxc3 {[%clk
0:04:20.3]} 11. Bxc7 {[%clk 0:04:25.2]} 11... Re8+ {[%clk 0:03:59.8]} 12. Kd2
{[%clk 0:04:24.2]} 12... Ne4+ {[%clk 0:03:57.9]} 13. Kc1 {[%clk 0:03:58.1]}
13... Nxf2 {[%clk 0:03:50.6]} 14. Rg1 {[%clk 0:03:55.8]} 14... Re1+ {[%clk
0:03:47.5]} 15. Kd2 {[%clk 0:03:52.7]} 15... Rxa1 {[%clk 0:03:45.4]} 16. Bc4
{[%clk 0:03:48.4]} 16... Rxg1 {[%clk 0:03:42.8]} 17. g3 {[%clk 0:03:44.4]} 17...
Rg2 {[%clk 0:03:37.1]} 18. Kc3 {[%clk 0:03:42.1]} 18... Ne4+ {[%clk 0:03:34.9]}
19. Kd4 {[%clk 0:03:39.1]} 19... Nf6 {[%clk 0:03:28.9]} 20. h4 {[%clk
0:03:16.9]} 20... d5 {[%clk 0:03:24.8]} 21. Bd3 {[%clk 0:03:13.7]} 21... Ne4
{[%clk 0:03:15]} 22. Bf4 {[%clk 0:02:59]} 22... Be6 {[%clk 0:03:03.4]} 23. Bxe4
{[%clk 0:02:48.5]} 23... dxe4 {[%clk 0:03:00.8]} 24. Kxe4 {[%clk 0:02:48.4]}
24... Bd5+ {[%clk 0:02:58.2]} 25. Kd3 {[%clk 0:02:48.3]} 25... Re8 {[%clk
0:02:49.3]} 26. b3 {[%clk 0:02:48.2]} 26... Ree2 {[%clk 0:02:46.7]} 27. c4
{[%clk 0:02:41.7]} 27... Be6 {[%clk 0:02:38.2]} 28. Kc3 {[%clk 0:02:41.5]} 28...
Rxa2 {[%clk 0:02:34.9]} 29. b4 {[%clk 0:02:40.7]} 29... Rac2+ {[%clk 0:02:24.6]}
30. Kd4 {[%clk 0:02:39]} 30... Rxc4+ {[%clk 0:02:23.4]} 31. Ke5 {[%clk 0:02:37]}
31... Rxb4 {[%clk 0:02:20.4]} 32. Kd6 {[%clk 0:02:36.6]} 32... Rxf4 {[%clk
0:02:18.9]} 33. Kc5 {[%clk 0:02:36.5]} 33... Rc4+ {[%clk 0:02:16.3]} 34. Kd6
{[%clk 0:02:34.6]} 34... Rxg3 {[%clk 0:02:13.6]} 35. h5 {[%clk 0:02:33.1]} 35...
Rh4 {[%clk 0:02:09.9]} 36. h6 {[%clk 0:02:32]} 36... Rxh6 {[%clk 0:02:08.6]} 37.
Ke5 {[%clk 0:02:30.7]} 37... a5 {[%clk 0:02:05.9]} 0-1

[Event "Live Chess"]
[Site "Chess.com"]
[Date "2024.06.01"]
[Round "-"]
[White "SvitlanaJ"]
[Black "jimwad"]
[Result "0-1"]
[WhiteElo "391"]
[BlackElo "1223"]
[TimeControl "300"]
[EndTime "9:32:09 PDT"]
[Termination "jimwad won by resignation"]

1. e4 {[%clk 0:04:55]} 1... e5 {[%clk 0:04:58.6]} 2. d4 {[%clk 0:04:52]} 2...
exd4 {[%clk 0:04:57.4]} 3. Qxd4 {[%clk 0:04:50.6]} 3... Nc6 {[%clk 0:04:57]} 4.
Qe3 {[%clk 0:04:46.7]} 4... Nf6 {[%clk 0:04:52]} 5. Bc4 {[%clk 0:04:44.3]} 5...
Bb4+ {[%clk 0:04:48]} 6. Bd2 {[%clk 0:04:41.8]} 6... Bxd2+ {[%clk 0:04:46.7]} 7.
Nxd2 {[%clk 0:04:39.5]} 7... O-O {[%clk 0:04:45.2]} 8. Nh3 {[%clk 0:04:26.8]}
8... Re8 {[%clk 0:04:41.8]} 9. Ng5 {[%clk 0:04:17.6]} 9... d5 {[%clk 0:04:37.4]}
10. Bb3 {[%clk 0:04:10.1]} 10... h6 {[%clk 0:04:23.3]} 11. Ngf3 {[%clk
0:03:48.9]} 11... dxe4 {[%clk 0:03:59.5]} 12. Nxe4 {[%clk 0:03:43]} 12... Rxe4
{[%clk 0:03:57.8]} 0-1

[Event "Live Chess"]
[Site "Chess.com"]
[Date "2024.06.01"]
[Round "-"]
[White "DoctorMantisTobogganMD"]
[Black "nigelst"]
[Result "1-0"]
[WhiteElo "2209"]
[BlackElo "1760"]
[TimeControl "300"]
[EndTime "9:32:17 PDT"]
[Termination "DoctorMantisTobogganMD won on time"]

1. e4 {[%clk 0:04:59.3]} 1... c6 {[%clk 0:04:58.7]} 2. d4 {[%clk 0:04:57.9]}
2... d5 {[%clk 0:04:58.2]} 3. exd5 {[%clk 0:04:57.8]} 3... cxd5 {[%clk
0:04:57.1]} 4. Bd3 {[%clk 0:04:57.7]} 4... Nf6 {[%clk 0:04:56.1]} 5. c3 {[%clk
0:04:56.8]} 5... Nc6 {[%clk 0:04:55.3]} 6. Ne2 {[%clk 0:04:56]} 6... e5 {[%clk
0:04:47.6]} 7. dxe5 {[%clk 0:04:54.6]} 7... Nxe5 {[%clk 0:04:45.6]} 8. O-O
{[%clk 0:04:54]} 8... Nxd3 {[%clk 0:04:42.9]} 9. Qxd3 {[%clk 0:04:53.9]} 9...
Be6 {[%clk 0:04:41.5]} 10. Nd4 {[%clk 0:04:52.8]} 10... Bd6 {[%clk 0:04:25.9]}
11. Re1 {[%clk 0:04:42.9]} 11... Qd7 {[%clk 0:04:17]} 12. Bg5 {[%clk 0:04:34.9]}
12... O-O-O {[%clk 0:04:03.7]} 13. Na3 {[%clk 0:04:26.3]} 13... Kb8 {[%clk
0:03:49.4]} 14. Nab5 {[%clk 0:04:21.5]} 14... a6 {[%clk 0:03:26.6]} 15. Nxd6
{[%clk 0:04:18.9]} 15... Qxd6 {[%clk 0:03:25.2]} 16. Bh4 {[%clk 0:04:17.4]}
16... Ka8 {[%clk 0:03:16.8]} 17. Bg3 {[%clk 0:03:38.4]} 17... Qd7 {[%clk
0:03:03.9]} 18. b4 {[%clk 0:03:32]} 18... Ne4 {[%clk 0:02:57.6]} 19. b5 {[%clk
0:03:29.2]} 19... a5 {[%clk 0:02:47.4]} 20. b6 {[%clk 0:03:25.7]} 20... Nxg3
{[%clk 0:02:42]} 21. hxg3 {[%clk 0:03:22.1]} 21... h5 {[%clk 0:02:35.5]} 22. Nb5
{[%clk 0:03:20.2]} 22... Rc8 {[%clk 0:02:28.8]} 23. Nc7+ {[%clk 0:03:18.7]}
23... Rxc7 {[%clk 0:02:27.7]} 24. bxc7 {[%clk 0:03:18.6]} 24... Qxc7 {[%clk
0:02:26.3]} 25. Rab1 {[%clk 0:03:08]} 25... h4 {[%clk 0:02:22.8]} 26. gxh4
{[%clk 0:03:00.3]} 26... Rxh4 {[%clk 0:02:19.2]} 27. g3 {[%clk 0:03:00]} 27...
Rc4 {[%clk 0:01:51.1]} 28. Re3 {[%clk 0:02:55.8]} 28... g6 {[%clk 0:01:47.9]}
29. a4 {[%clk 0:02:39.1]} 29... Bf5 {[%clk 0:01:44.5]} 30. Re8+ {[%clk
0:02:35.3]} 30... Ka7 {[%clk 0:01:40.4]} 31. Qe3+ {[%clk 0:02:34.9]} 31... b6
{[%clk 0:01:35.8]} 32. Re7 {[%clk 0:02:31.5]} 32... Bd7 {[%clk 0:01:34.8]} 33.
Rxf7 {[%clk 0:02:19.5]} 33... Rxc3 {[%clk 0:01:32.1]} 34. Qxc3 {[%clk 0:02:16]}
34... Qxc3 {[%clk 0:01:28.1]} 35. Rxd7+ {[%clk 0:02:15.2]} 35... Ka6 {[%clk
0:01:14]} 36. Rxd5 {[%clk 0:02:12.6]} 36... Qc2 {[%clk 0:01:04.8]} 37. Rdb5
{[%clk 0:02:08.7]} 37... Qxa4 {[%clk 0:01:00.5]} 38. Rxb6+ {[%clk 0:02:08]}
38... Ka7 {[%clk 0:00:59.7]} 39. Rb7+ {[%clk 0:02:07.5]} 39... Ka8 {[%clk
0:00:58.9]} 40. R7b6 {[%clk 0:02:06.6]} 40... Qc4 {[%clk 0:00:53.4]} 41. Rxg6
{[%clk 0:02:00]} 41... a4 {[%clk 0:00:38.7]} 42. Rgb6 {[%clk 0:01:57.2]} 42...
a3 {[%clk 0:00:29.1]} 43. R6b4 {[%clk 0:01:56]} 43... Qc2 {[%clk 0:00:21.8]} 44.
Ra1 {[%clk 0:01:50.5]} 44... a2 {[%clk 0:00:17]} 45. Ra4+ {[%clk 0:01:49.2]}
45... Kb7 {[%clk 0:00:15.1]} 46. R4xa2 {[%clk 0:01:49.1]} 46... Qf5 {[%clk
0:00:10.6]} 47. Rb2+ {[%clk 0:01:44.6]} 47... Kc6 {[%clk 0:00:09.6]} 48. Rc1+
{[%clk 0:01:44.1]} 48... Kd6 {[%clk 0:00:08.3]} 49. Rd2+ {[%clk 0:01:43.6]}
49... Ke7 {[%clk 0:00:06.7]} 50. Re1+ {[%clk 0:01:42.6]} 50... Kf7 {[%clk
0:00:05.7]} 51. Rd4 {[%clk 0:01:42.2]} 51... Qb5 {[%clk 0:00:01.8]} 52. Rf4+
{[%clk 0:01:41.4]} 52... Kg6 {[%clk 0:00:00.1]} 53. Re6+ {[%clk 0:01:39.3]} 1-0

[Event "Live Chess"]
[Site "Chess.com"]
[Date "2024.06.01"]
[Round "-"]
[White "Queensandpawns"]
[Black "peteopeteo"]
[Result "1-0"]
[WhiteElo "2466"]
[BlackElo "1623"]
[TimeControl "300"]
[EndTime "9:32:17 PDT"]
[Termination "Queensandpawns won by resignation"]

1. e4 {[%clk 0:04:56.7]} 1... c6 {[%clk 0:04:59.3]} 2. d4 {[%clk 0:04:55.7]}
2... d5 {[%clk 0:04:59.2]} 3. Nc3 {[%clk 0:04:55.6]} 3... dxe4 {[%clk
0:04:58.4]} 4. Nxe4 {[%clk 0:04:55.4]} 4... Nf6 {[%clk 0:04:58.3]} 5. Ng5 {[%clk
0:04:55.1]} 5... h6 {[%clk 0:04:55]} 6. Nxf7 {[%clk 0:04:54.6]} 6... Kxf7 {[%clk
0:04:54.8]} 7. Nf3 {[%clk 0:04:54.5]} 7... e6 {[%clk 0:04:06.3]} 8. Bd3 {[%clk
0:04:52.8]} 8... Bd6 {[%clk 0:04:00.1]} 9. O-O {[%clk 0:04:52.5]} 9... Nbd7
{[%clk 0:03:51.6]} 10. Re1 {[%clk 0:04:52.4]} 10... Rf8 {[%clk 0:03:32.7]} 11.
Ne5+ {[%clk 0:04:52.3]} 11... Nxe5 {[%clk 0:03:31.4]} 12. dxe5 {[%clk
0:04:52.2]} 12... Nd5 {[%clk 0:03:20.9]} 13. exd6 {[%clk 0:04:50.9]} 13... Nc3
{[%clk 0:03:20.8]} 14. Qh5+ {[%clk 0:04:49.9]} 14... Kg8 {[%clk 0:03:19.7]} 15.
bxc3 {[%clk 0:04:48.6]} 15... Qf6 {[%clk 0:03:16.2]} 16. Be3 {[%clk 0:04:45.7]}
16... Bd7 {[%clk 0:03:00.6]} 17. Bd4 {[%clk 0:04:43.9]} 17... Qf4 {[%clk
0:02:51.2]} 18. Qg6 {[%clk 0:04:41.6]} 1-0

[Event "Live Chess"]
[Site "Chess.com"]
[Date "2024.06.01"]
[Round "-"]
[White "Richardallis"]
[Black "ProfPoisson"]
[Result "1-0"]
[WhiteElo "1984"]
[BlackElo "1234"]
[TimeControl "300"]
[EndTime "9:32:43 PDT"]
[Termination "Richardallis won by checkmate"]

1. d4 {[%clk 0:04:41.7]} 1... e6 {[%clk 0:04:56.8]} 2. Nf3 {[%clk 0:04:40.4]}
2... f5 {[%clk 0:04:54.3]} 3. Be3 {[%clk 0:04:39.3]} 3... Nf6 {[%clk 0:04:52]}
4. c4 {[%clk 0:04:37.7]} 4... Bb4+ {[%clk 0:04:48.5]} 5. Nc3 {[%clk 0:04:36.4]}
5... Bxc3+ {[%clk 0:04:47.3]} 6. bxc3 {[%clk 0:04:35.1]} 6... b6 {[%clk
0:04:46]} 7. Ne5 {[%clk 0:04:33.8]} 7... d6 {[%clk 0:04:43.3]} 8. Nd3 {[%clk
0:04:32.7]} 8... Bb7 {[%clk 0:04:37.4]} 9. Bg5 {[%clk 0:04:32]} 9... h6 {[%clk
0:04:34]} 10. Bxf6 {[%clk 0:04:30.7]} 10... Qxf6 {[%clk 0:04:31.5]} 11. f4
{[%clk 0:04:29.4]} 11... Nd7 {[%clk 0:04:25.3]} 12. e3 {[%clk 0:04:28]} 12...
O-O-O {[%clk 0:04:15.1]} 13. Qa4 {[%clk 0:04:26.1]} 13... a6 {[%clk 0:04:10.1]}
14. Nb4 {[%clk 0:04:22.9]} 14... g5 {[%clk 0:04:01.6]} 15. Nxa6 {[%clk
0:04:20.9]} 15... gxf4 {[%clk 0:03:56.7]} 16. exf4 {[%clk 0:04:18.9]} 16... e5
{[%clk 0:03:31.8]} 17. fxe5 {[%clk 0:03:48]} 17... dxe5 {[%clk 0:03:21.8]} 18.
d5 {[%clk 0:03:46.9]} 18... Nc5 {[%clk 0:03:12]} 19. Nxc5 {[%clk 0:03:38.3]}
19... bxc5 {[%clk 0:03:09.3]} 20. O-O-O {[%clk 0:03:34]} 20... Qg5+ {[%clk
0:03:00.6]} 21. Kb2 {[%clk 0:03:32.1]} 21... Rd6 {[%clk 0:02:51.4]} 22. Bd3
{[%clk 0:03:29.2]} 22... Qxg2+ {[%clk 0:02:45.3]} 23. Ka1 {[%clk 0:03:26]} 23...
Ra6 {[%clk 0:02:41.2]} 24. Bxf5+ {[%clk 0:03:24.1]} 24... Kb8 {[%clk 0:02:36.3]}
25. Qb3 {[%clk 0:03:21.9]} 25... Rf8 {[%clk 0:02:24.4]} 26. Rhf1 {[%clk
0:03:16.2]} 26... Ka7 {[%clk 0:02:12.7]} 27. Bh3 {[%clk 0:03:11.4]} 27... Qxh2
{[%clk 0:02:09.5]} 28. Rxf8 {[%clk 0:03:08.9]} 28... Qxh3 {[%clk 0:02:02]} 29.
Rb1 {[%clk 0:03:07.4]} 29... Rb6 {[%clk 0:01:51]} 30. Qa3+ {[%clk 0:03:05.6]}
30... Ra6 {[%clk 0:01:49.5]} 31. Qxc5+ {[%clk 0:03:03.9]} 31... Rb6 {[%clk
0:01:44.4]} 32. Rxb6 {[%clk 0:02:55.7]} 32... Qxc3+ {[%clk 0:01:41.1]} 33. Kb1
{[%clk 0:02:53.1]} 33... Qe1+ {[%clk 0:01:35.6]} 34. Kb2 {[%clk 0:02:50.2]}
34... Qd2+ {[%clk 0:01:31.6]} 35. Ka3 {[%clk 0:02:48.9]} 35... Qc3+ {[%clk
0:01:24.7]} 36. Rb3+ {[%clk 0:02:46]} 36... Ka6 {[%clk 0:01:20.9]} 37. Qb5+
{[%clk 0:02:41.5]} 37... Ka7 {[%clk 0:01:18.3]} 38. Qxb7# {[%clk 0:02:40.3]} 1-0

[Event "Live Chess"]
[Site "Chess.com"]
[Date "2024.06.01"]
[Round "-"]
[White "GwaryTek"]
[Black "Zhevzh1k7"]
[Result "1-0"]
[WhiteElo "1967"]
[BlackElo "1067"]
[TimeControl "300"]
[EndTime "9:32:43 PDT"]
[Termination "GwaryTek won by resignation"]

1. d4 {[%clk 0:04:57.5]} 1... Nf6 {[%clk 0:04:58.1]} 2. c4 {[%clk 0:04:57.4]}
2... e6 {[%clk 0:04:56.6]} 3. Nc3 {[%clk 0:04:56.3]} 3... d5 {[%clk 0:04:55.5]}
4. Nf3 {[%clk 0:04:56.2]} 4... c6 {[%clk 0:04:54.2]} 5. Bg5 {[%clk 0:04:55.7]}
5... Be7 {[%clk 0:04:50.1]} 6. e3 {[%clk 0:04:54.9]} 6... Nbd7 {[%clk 0:04:49]}
7. cxd5 {[%clk 0:04:53.6]} 7... cxd5 {[%clk 0:04:45.7]} 8. Qc2 {[%clk 0:04:53]}
8... Qb6 {[%clk 0:04:40.8]} 9. Bd3 {[%clk 0:04:52.3]} 9... h6 {[%clk 0:04:37.8]}
10. Bf4 {[%clk 0:04:50.9]} 10... O-O {[%clk 0:04:32.6]} 11. O-O {[%clk
0:04:49.4]} 11... Nh5 {[%clk 0:04:22]} 12. Bg3 {[%clk 0:04:41]} 12... Nxg3
{[%clk 0:04:20.8]} 13. hxg3 {[%clk 0:04:40.9]} 13... Nf6 {[%clk 0:04:19.5]} 14.
Rac1 {[%clk 0:04:40.8]} 14... Bb4 {[%clk 0:04:17]} 15. Na4 {[%clk 0:04:39]}
15... Qa5 {[%clk 0:04:10]} 16. a3 {[%clk 0:04:36.6]} 16... Bd6 {[%clk
0:04:07.1]} 17. b4 {[%clk 0:04:33.3]} 17... Qd8 {[%clk 0:03:59.5]} 18. Nc5
{[%clk 0:04:32]} 18... b6 {[%clk 0:03:52]} 19. Nb3 {[%clk 0:04:31]} 19... Bb7
{[%clk 0:03:48.8]} 20. Qe2 {[%clk 0:04:27.2]} 20... Qd7 {[%clk 0:03:38.5]} 21.
Ne5 {[%clk 0:04:14.4]} 21... Bc6 {[%clk 0:03:33.9]} 22. Nxd7 {[%clk 0:04:12.8]}
22... Bxd7 {[%clk 0:03:32.8]} 23. Bb5 {[%clk 0:04:09]} 23... Bxb5 {[%clk
0:03:25.7]} 24. Qxb5 {[%clk 0:04:06.9]} 1-0

[Event "Live Chess"]
[Site "Chess.com"]
[Date "2024.06.01"]
[Round "-"]
[White "Frankie_Badacsonyi"]
[Black "akp42"]
[Result "1/2-1/2"]
[WhiteElo "2448"]
[BlackElo "2001"]
[TimeControl "300"]
[EndTime "9:32:49 PDT"]
[Termination "Game drawn by agreement"]

1. e4 {[%clk 0:04:57.8]} 1... e6 {[%clk 0:04:57.5]} 2. d4 {[%clk 0:04:56.1]}
2... d5 {[%clk 0:04:55.7]} 3. e5 {[%clk 0:04:54.4]} 3... c5 {[%clk 0:04:53.9]}
4. c3 {[%clk 0:04:53.6]} 4... Nc6 {[%clk 0:04:52.5]} 5. Nf3 {[%clk 0:04:51.8]}
5... Bd7 {[%clk 0:04:52]} 6. Be2 {[%clk 0:04:50.7]} 6... Nge7 {[%clk 0:04:48.9]}
7. O-O {[%clk 0:04:49.4]} 7... Ng6 {[%clk 0:04:47.2]} 8. g3 {[%clk 0:04:41.5]}
8... Be7 {[%clk 0:04:45.7]} 9. h4 {[%clk 0:04:40.5]} 9... O-O {[%clk 0:04:45]}
10. Na3 {[%clk 0:04:29.2]} 10... Nh8 {[%clk 0:04:39.5]} 11. Nc2 {[%clk
0:04:26.6]} 11... f6 {[%clk 0:04:38.4]} 12. exf6 {[%clk 0:04:07.8]} 12... Rxf6
{[%clk 0:04:36.7]} 13. Ne3 {[%clk 0:04:02]} 13... Nf7 {[%clk 0:04:27.6]} 14. Ng4
{[%clk 0:03:53.8]} 14... Rg6 {[%clk 0:04:23.8]} 15. Ngh2 {[%clk 0:02:50.5]}
15... e5 {[%clk 0:04:10.3]} 16. h5 {[%clk 0:02:43.7]} 16... Re6 {[%clk
0:04:05.2]} 17. dxe5 {[%clk 0:02:37.3]} 17... Be8 {[%clk 0:03:31.9]} 18. Ng4
{[%clk 0:02:10]} 18... Ncxe5 {[%clk 0:03:29.1]} 19. Ngxe5 {[%clk 0:02:08.3]}
19... Nxe5 {[%clk 0:03:28.1]} 20. Nxe5 {[%clk 0:02:00.7]} 20... Rxe5 {[%clk
0:03:27.1]} 21. Bf4 {[%clk 0:01:59.4]} 21... Re6 {[%clk 0:03:11.1]} 22. Bf3
{[%clk 0:01:58.4]} 22... Bc6 {[%clk 0:03:09.5]} 23. Re1 {[%clk 0:01:55.1]} 23...
Rxe1+ {[%clk 0:03:06.6]} 24. Qxe1 {[%clk 0:01:55]} 24... Bf6 {[%clk 0:02:51.8]}
25. Rd1 {[%clk 0:01:52.8]} 25... Qd7 {[%clk 0:02:40.3]} 26. Qd2 {[%clk
0:01:32.6]} 26... d4 {[%clk 0:02:32.9]} 27. Bxc6 {[%clk 0:01:29.7]} 27... Qxc6
{[%clk 0:02:31.8]} 28. cxd4 {[%clk 0:01:25]} 28... Bxd4 {[%clk 0:02:29.7]} 29.
Qc2 {[%clk 0:01:20.5]} 29... Re8 {[%clk 0:02:23]} 30. b3 {[%clk 0:01:17.2]}
30... Qd5 {[%clk 0:02:14.8]} 31. Qd2 {[%clk 0:01:08.3]} 31... Qxh5 {[%clk
0:02:11.5]} 32. Re1 {[%clk 0:01:06.2]} 32... h6 {[%clk 0:02:01]} 33. Rxe8+
{[%clk 0:00:57.6]} 33... Qxe8 {[%clk 0:01:59.4]} 34. Qc2 {[%clk 0:00:50]} 34...
Qe1+ {[%clk 0:01:52.7]} 35. Kg2 {[%clk 0:00:45.2]} 1/2-1/2

[Event "Live Chess"]
[Site "Chess.com"]
[Date "2024.06.01"]
[Round "-"]
[White "IanCalvert2"]
[Black "JP56789"]
[Result "0-1"]
[WhiteElo "1608"]
[BlackElo "2297"]
[TimeControl "300"]
[EndTime "9:33:16 PDT"]
[Termination "JP56789 won on time"]

1. b3 {[%clk 0:04:56]} 1... c6 {[%clk 0:04:59.9]} 2. Bb2 {[%clk 0:04:54.2]} 2...
d5 {[%clk 0:04:59.8]} 3. Nf3 {[%clk 0:04:52.3]} 3... Nf6 {[%clk 0:04:59.4]} 4.
g3 {[%clk 0:04:45.9]} 4... Bg4 {[%clk 0:04:58.5]} 5. Bg2 {[%clk 0:04:44.9]} 5...
e6 {[%clk 0:04:57.6]} 6. O-O {[%clk 0:04:43.4]} 6... Be7 {[%clk 0:04:56.9]} 7.
d4 {[%clk 0:04:40.5]} 7... O-O {[%clk 0:04:55.7]} 8. c4 {[%clk 0:04:39.3]} 8...
Nbd7 {[%clk 0:04:53.1]} 9. Nbd2 {[%clk 0:04:37.1]} 9... Rc8 {[%clk 0:04:52]} 10.
Rc1 {[%clk 0:04:20.5]} 10... dxc4 {[%clk 0:04:49.3]} 11. Nxc4 {[%clk 0:04:15.7]}
11... c5 {[%clk 0:04:49]} 12. Nce5 {[%clk 0:04:06.3]} 12... Bf5 {[%clk
0:04:35.6]} 13. Nxd7 {[%clk 0:03:57.9]} 13... Qxd7 {[%clk 0:04:26.4]} 14. Ne5
{[%clk 0:03:48]} 14... Qb5 {[%clk 0:04:25.8]} 15. e3 {[%clk 0:03:14.7]} 15...
cxd4 {[%clk 0:04:20.7]} 16. Qxd4 {[%clk 0:03:01.8]} 16... a6 {[%clk 0:04:15.3]}
17. Qf4 {[%clk 0:02:11.6]} 17... Bg6 {[%clk 0:04:02.1]} 18. Qf3 {[%clk
0:01:35.5]} 18... Be4 {[%clk 0:03:56.2]} 19. Qf4 {[%clk 0:01:32.9]} 19... Bxg2
{[%clk 0:03:55.4]} 20. Kxg2 {[%clk 0:01:30.2]} 20... Qd5+ {[%clk 0:03:52.7]} 21.
Qf3 {[%clk 0:01:17.7]} 21... Qd2 {[%clk 0:03:52.2]} 22. Rxc8 {[%clk 0:01:13.8]}
22... Rxc8 {[%clk 0:03:49.6]} 23. Qxb7 {[%clk 0:00:48.1]} 23... Re8 {[%clk
0:03:46.5]} 24. Bd4 {[%clk 0:00:34.5]} 24... Qxa2 {[%clk 0:03:45.3]} 25. Nc6
{[%clk 0:00:23.4]} 25... Bf8 {[%clk 0:03:38.5]} 26. Bxf6 {[%clk 0:00:17.6]}
26... gxf6 {[%clk 0:03:38.4]} 27. Nd4 {[%clk 0:00:06.8]} 27... Qa5 {[%clk
0:03:33.7]} 28. Qf3 {[%clk 0:00:00.4]} 28... Bg7 {[%clk 0:03:31.5]} 0-1

[Event "Live Chess"]
[Site "Chess.com"]
[Date "2024.06.01"]
[Round "-"]
[White "Grace6363"]
[Black "Tilbs_12"]
[Result "0-1"]
[WhiteElo "1122"]
[BlackElo "1662"]
[TimeControl "300"]
[EndTime "9:33:20 PDT"]
[Termination "Tilbs_12 won on time"]

1. d4 {[%clk 0:04:52.8]} 1... d5 {[%clk 0:04:58.6]} 2. c4 {[%clk 0:04:52]} 2...
e6 {[%clk 0:04:56.9]} 3. Nf3 {[%clk 0:04:49.9]} 3... Nf6 {[%clk 0:04:55.7]} 4.
cxd5 {[%clk 0:04:48.3]} 4... exd5 {[%clk 0:04:54.5]} 5. a3 {[%clk 0:04:47.5]}
5... Be7 {[%clk 0:04:43.6]} 6. Nc3 {[%clk 0:04:45.7]} 6... O-O {[%clk
0:04:41.9]} 7. Bg5 {[%clk 0:04:44.4]} 7... c6 {[%clk 0:04:40.4]} 8. e3 {[%clk
0:04:43.5]} 8... Bg4 {[%clk 0:04:38.8]} 9. Be2 {[%clk 0:04:42.5]} 9... Nbd7
{[%clk 0:04:34.1]} 10. h3 {[%clk 0:04:41.1]} 10... Bh5 {[%clk 0:04:33.1]} 11.
O-O {[%clk 0:04:38]} 11... Qc7 {[%clk 0:04:27.1]} 12. Bf4 {[%clk 0:04:34.2]}
12... Bd6 {[%clk 0:04:25.6]} 13. Qd3 {[%clk 0:04:20.9]} 13... Bg6 {[%clk
0:04:22.9]} 14. Qd2 {[%clk 0:04:13.2]} 14... Rfe8 {[%clk 0:04:18.6]} 15. Bxd6
{[%clk 0:04:02]} 15... Qxd6 {[%clk 0:04:17.4]} 16. Bd3 {[%clk 0:03:54.6]} 16...
Ne4 {[%clk 0:04:12.5]} 17. Bxe4 {[%clk 0:03:39.8]} 17... Bxe4 {[%clk 0:04:05.4]}
18. Ng5 {[%clk 0:03:29]} 18... Bg6 {[%clk 0:03:53.1]} 19. f4 {[%clk 0:03:23.1]}
19... h6 {[%clk 0:03:47.8]} 20. f5 {[%clk 0:03:16.3]} 20... hxg5 {[%clk
0:03:21.9]} 21. fxg6 {[%clk 0:03:15.1]} 21... Qxg6 {[%clk 0:03:21.8]} 22. Rf3
{[%clk 0:03:07.3]} 22... Nf6 {[%clk 0:03:20]} 23. Raf1 {[%clk 0:03:04.9]} 23...
Re7 {[%clk 0:03:13.1]} 24. Qf2 {[%clk 0:03:02.5]} 24... Rae8 {[%clk 0:03:02.3]}
25. Nd1 {[%clk 0:02:36.6]} 25... g4 {[%clk 0:02:47.6]} 26. Rxf6 {[%clk
0:02:26.6]} 26... gxf6 {[%clk 0:02:43.5]} 27. hxg4 {[%clk 0:02:18.2]} 27... Kg7
{[%clk 0:02:37.1]} 28. Qf4 {[%clk 0:02:00.9]} 28... Re4 {[%clk 0:02:27.5]} 29.
Qc7 {[%clk 0:01:50.1]} 29... R8e7 {[%clk 0:02:25.5]} 30. Qd6 {[%clk 0:01:36.6]}
30... Qxg4 {[%clk 0:02:17.5]} 31. Qxf6+ {[%clk 0:01:34.2]} 31... Kg8 {[%clk
0:02:13.6]} 32. Nf2 {[%clk 0:01:24.9]} 32... Qg6 {[%clk 0:02:02.7]} 33. Qxg6+
{[%clk 0:01:21.9]} 33... fxg6 {[%clk 0:02:01.7]} 34. Nxe4 {[%clk 0:01:21.2]}
34... Rxe4 {[%clk 0:02:01]} 35. Rf3 {[%clk 0:01:10.4]} 35... Kg7 {[%clk
0:01:59]} 36. Kf2 {[%clk 0:00:59.4]} 36... g5 {[%clk 0:01:52]} 37. g3 {[%clk
0:00:57.3]} 37... b6 {[%clk 0:01:37.4]} 38. Rf5 {[%clk 0:00:55]} 38... Kg6
{[%clk 0:01:32.6]} 39. Rf8 {[%clk 0:00:52.2]} 39... Re7 {[%clk 0:01:27.3]} 40.
Rc8 {[%clk 0:00:47.7]} 40... Re6 {[%clk 0:01:21.3]} 41. b3 {[%clk 0:00:42.4]}
41... a5 {[%clk 0:01:18.7]} 42. Rb8 {[%clk 0:00:38.3]} 42... b5 {[%clk
0:01:13.2]} 43. b4 {[%clk 0:00:37.7]} 43... a4 {[%clk 0:01:05.3]} 44. Rc8 {[%clk
0:00:36]} 44... Kf5 {[%clk 0:01:03.4]} 45. Rf8+ {[%clk 0:00:33.5]} 45... Ke4
{[%clk 0:01:02.4]} 46. Rg8 {[%clk 0:00:30.6]} 46... Kd3 {[%clk 0:00:38.8]} 47.
Rxg5 {[%clk 0:00:27.7]} 47... Rxe3 {[%clk 0:00:38.7]} 48. Rg6 {[%clk 0:00:24.1]}
48... Re2+ {[%clk 0:00:37.7]} 49. Kf3 {[%clk 0:00:22.3]} 49... Rc2 {[%clk
0:00:35.5]} 50. Rd6 {[%clk 0:00:19.2]} 50... Kxd4 {[%clk 0:00:32.8]} 51. Kf4
{[%clk 0:00:18.2]} 51... Rc3 {[%clk 0:00:31.6]} 52. g4 {[%clk 0:00:16.2]} 52...
Rxa3 {[%clk 0:00:26.5]} 53. g5 {[%clk 0:00:15.5]} 53... c5 {[%clk 0:00:22.2]}
54. g6 {[%clk 0:00:14.1]} 54... Ra1 {[%clk 0:00:19.4]} 55. g7 {[%clk 0:00:13.4]}
55... Rg1 {[%clk 0:00:14.8]} 56. Rd7 {[%clk 0:00:09.8]} 56... cxb4 {[%clk
0:00:13.2]} 57. Kf5 {[%clk 0:00:08.8]} 57... b3 {[%clk 0:00:12]} 58. Kf6 {[%clk
0:00:08.2]} 58... b2 {[%clk 0:00:10.7]} 59. Kf7 {[%clk 0:00:06.2]} 59... b1=Q
{[%clk 0:00:08.4]} 60. g8=Q {[%clk 0:00:04.9]} 60... Rxg8 {[%clk 0:00:07.2]} 61.
Kxg8 {[%clk 0:00:04.3]} 61... Qg1+ {[%clk 0:00:06.4]} 62. Rg7 {[%clk 0:00:03.7]}
62... Qxg7+ {[%clk 0:00:05.5]} 63. Kxg7 {[%clk 0:00:03]} 63... Ke4 {[%clk
0:00:05.4]} 64. Kf7 {[%clk 0:00:02.7]} 64... d4 {[%clk 0:00:05]} 65. Ke6 {[%clk
0:00:01.9]} 65... d3 {[%clk 0:00:04.9]} 66. Kd6 {[%clk 0:00:01.5]} 66... d2
{[%clk 0:00:04.8]} 67. Kc6 {[%clk 0:00:01.1]} 67... d1=Q {[%clk 0:00:04.4]} 68.
Kxb5 {[%clk 0:00:00.8]} 68... Qb3+ {[%clk 0:00:03.8]} 0-1